bitfinex/quotes_ETHUSD_20251212
["timestamp","ask_amount","ask_price","bid_price","bid_amount"]
[1765498506805,1.41807014,3232.4,3231.8,0.001]
[1765498507008,0.489,3232.4,3231.8,0.001]
[1765498509543,6.18754446,3232.3,3231.8,0.001]
[1765498511222,0.489,3232.2,3231.8,0.001]
[1765498511646,3.09396367,3232.1,3231.8,0.001]
[1765498513337,3.58290632,3232.2,3231.8,0.001]
[1765498515344,3.09341168,3232.7,3231.8,0.001]
[1765498515550,0.489,3232.4,3231.8,0.001]
[1765498516549,0.489,3232.3,3231.8,0.001]
[1765498516737,0.489,3232.2,3231.8,0.001]
[1765498517950,3.58293251,3232.2,3231.8,0.001]
[1765498518520,0.489,3232.2,3231.8,0.001]
[1765498520134,6.18724521,3232.5,3231.8,0.001]
[1765498520336,0.489,3232.3,3231.8,0.001]
[1765498522165,3.58281871,3232.3,3231.8,0.001]
[1765498524240,0.489,3232.3,3231.8,0.001]
[1765498524441,6.18658746,3232.8,3231.8,0.001]
[1765498524767,0.489,3232.7,3231.8,0.57553193]
[1765498525176,6.18658746,3232.8,3231.8,0.57553193]
[1765498525377,0.489,3232.6,3231.8,0.57553193]
[1765498525560,3.09348915,3232.6,3231.9,6.18831028]
[1765498525761,3.58248915,3232.6,3232.0,0.67638422]
[1765498527547,0.489,3232.6,3232.1,3.09396367]
[1765498528180,3.58252351,3232.6,3232.1,3.09396367]
[1765498528682,3.58252351,3232.6,3232.0,3.77040946]
[1765498529275,0.489,3232.6,3232.0,6.86446886]
[1765498529476,0.489,3232.6,3232.1,0.68644689]
[1765498529990,0.489,3232.6,3232.1,3.78036953]
[1765498530283,3.58249861,3232.6,3232.1,3.09392264]
[1765498530650,0.489,3232.6,3232.1,3.09392264]
[1765498531161,3.09334041,3232.8,3232.1,3.09392264]
[1765498531366,0.489,3232.7,3232.1,3.09392264]
[1765498531761,3.76182613,3232.9,3232.1,3.09392264]
[1765498531964,0.002,3233.2,3232.5,5.74431927]
[1765498532176,0.002,3233.2,3232.6,5.74431927]
[1765498532494,0.002,3233.2,3232.4,1.06947529]
[1765498534162,0.002,3233.2,3232.5,6.18716162]
[1765498535292,0.002,3233.2,3232.5,9.28074243]
[1765498535479,0.002,3233.2,3232.6,6.77934104]
[1765498536894,0.002,3233.2,3232.7,6.18677884]
[1765498537795,0.4813,3233.2,3232.6,4.12846081]
[1765498538393,0.4507,3232.7,3232.5,3.09354793]
[1765498538610,0.4813,3233.2,3232.4,3.67411791]
[1765498538800,0.4793,3233.1,3232.4,3.67411791]
[1765498539093,3.5723742,3233.1,3232.5,3.09356231]
[1765498539296,0.489,3233.0,3232.5,3.09356231]
[1765498539468,0.9683,3233.0,3232.5,3.77034156]
[1765498540574,0.489,3233.0,3232.5,3.77034156]
[1765498540895,0.489,3233.0,3232.5,6.86392237]
[1765498541672,0.489,3233.0,3232.5,3.77034156]
[1765498542411,3.09302685,3233.1,3232.5,3.77034156]
[1765498542613,0.002,3233.2,3232.6,0.68640049]
[1765498543919,0.002,3233.2,3232.7,6.18677884]
[1765498546788,0.002,3233.2,3232.7,3.09338942]
[1765498547818,0.4623,3233.2,3232.7,3.09338942]
[1765498548023,0.002,3233.2,3232.7,6.18677884]
[1765498548226,0.002,3233.2,3232.8,0.68731793]
[1765498549113,0.002,3233.2,3232.8,0.71825086]
[1765498549309,0.002,3233.2,3232.8,1.78772615]
[1765498549596,0.002,3233.2,3233.0,5.74431927]
[1765498549937,0.002,3233.2,3233.1,3.70441206]
[1765498550139,0.002,3233.2,3233.1,4.95859541]
[1765498550345,0.002,3233.2,3233.1,4.92766535]
[1765498552915,0.002,3233.2,3233.1,4.95859541]
[1765498553548,0.002,3233.2,3233.1,4.92766535]
[1765498553845,0.002,3233.2,3233.1,5.21067532]
[1765498554139,0.002,3233.2,3233.1,5.61617932]
[1765498559943,0.002,3233.2,3233.1,5.7399618]
[1765498561945,0.002,3233.2,3233.1,35.7399618]
[1765498562146,0.4623,3234.9,3233.4,0.98597929]
[1765498562346,0.002,3234.9,3234.0,17.09620556]
[1765498562573,0.002,3234.9,3234.0,23.32952483]
[1765498562768,0.002,3234.9,3234.0,23.45325026]
[1765498562976,0.002,3234.9,3234.0,43.08734326]
[1765498563271,0.002,3234.9,3234.0,46.1794892]
[1765498563440,0.002,3234.9,3234.0,48.26660058]
[1765498568472,0.002,3235.2,3234.5,30.0]
[1765498568676,0.002,3235.2,3235.1,28.58700756]
[1765498568882,0.002,3235.2,3235.1,29.07600756]
[1765498569181,0.002,3235.2,3235.1,34.81421656]
[1765498569348,0.002,3235.2,3235.1,28.4384159]
[1765498569949,0.002,3235.2,3235.1,39.77695145]
[1765498570251,0.002,3235.2,3235.1,38.32945745]
[1765498570782,0.002,3235.2,3235.1,23.66832345]
[1765498570981,0.002,3235.2,3235.1,29.87370045]
[1765498571289,0.002,3235.2,3235.1,30.15671042]
[1765498571763,0.002,3235.2,3235.1,28.52765642]
[1765498571964,0.002,3235.2,3235.1,11.40440742]
[1765498572167,0.002,3235.2,3235.1,29.07885642]
[1765498573055,0.002,3235.2,3235.1,31.98510142]
[1765498573252,0.002,3235.2,3235.1,22.50972842]
[1765498573452,0.002,3235.2,3235.1,10.96170615]
[1765498574056,0.002,3235.2,3235.1,17.83764615]
[1765498574664,0.002,3235.2,3235.1,23.56562553]
[1765498575164,0.002,3235.2,3235.1,24.02238753]
[1765498576177,0.002,3235.2,3235.1,25.77138953]
[1765498577087,0.002,3235.2,3235.1,41.38806753]
[1765498580065,0.002,3235.2,3235.1,35.66008815]
[1765498580262,0.002,3235.2,3235.1,16.88295853]
[1765498581288,0.002,3235.2,3235.1,28.59407053]
[1765498582285,0.002,3235.2,3235.1,29.04287053]
[1765498582688,0.002,3235.2,3235.1,26.62359253]
[1765498582882,0.002,3235.2,3235.1,26.23619353]
[1765498583286,0.002,3235.2,3235.1,11.38806753]
[1765498583474,0.002,3235.2,3235.1,26.23619353]
[1765498583671,0.9364,3235.2,3235.1,4.18510886]
[1765498583873,0.9364,3235.2,3235.1,2.59109455]
[1765498584395,0.9364,3235.2,3234.9,0.58047529]
[1765498584569,0.475,3235.0,3234.9,0.58047529]
[1765498585094,0.9344,3235.0,3234.9,0.58047529]
[1765498585264,0.9344,3235.0,3234.9,7.06187944]
[1765498586382,0.9344,3235.0,3234.9,9.39974033]
[1765498590273,0.9344,3235.0,3234.9,3.09128566]
[1765498590592,0.9344,3235.0,3234.9,3.67176095]
[1765498590983,0.9344,3235.0,3234.9,0.58047529]
[1765498591183,0.9344,3235.0,3234.9,3.67176095]
[1765498595213,0.475,3235.0,3234.9,3.67176095]
[1765498595413,0.002,3235.2,3234.9,13.50404007]
[1765498596517,0.475,3235.0,3234.9,10.07605441]
[1765498596891,0.475,3235.0,3234.9,3.67176095]
[1765498597088,0.9344,3235.0,3234.9,3.67176095]
[1765498597287,0.9344,3235.0,3234.9,0.58047529]
[1765498600410,0.9344,3235.0,3234.9,3.67176095]
[1765498601015,0.9344,3235.0,3234.9,0.58047529]
[1765498601527,0.9344,3235.0,3234.5,3.09166035]
[1765498601683,0.6543,3234.9,3234.6,3.67197462]
[1765498602085,0.475,3234.7,3234.6,3.67197462]
[1765498602812,0.9344,3234.7,3234.6,3.67197462]
[1765498607601,0.9344,3234.7,3234.5,3.67213767]
[1765498607900,0.4722,3234.6,3234.5,3.67213767]
[1765498608106,0.9593,3234.6,3234.5,3.67213767]
[1765498611301,0.4871,3234.6,3234.5,3.67213767]
[1765498611807,0.9593,3234.6,3234.5,3.67213767]
[1765498612008,0.9593,3234.6,3234.5,4.97012541]
[1765498612219,0.1949,3234.9,3234.5,8.39849336]
[1765498612439,0.4722,3235.1,3234.7,5.72797938]
[1765498613414,0.002,3235.2,3235.0,6.06467938]
[1765498613619,0.002,3235.2,3235.1,2.26208926]
[1765498613824,0.002,3235.2,3235.1,3.40088741]
[1765498614231,0.002,3235.2,3235.1,6.49198196]
[1765498614929,0.002,3235.2,3235.1,36.49198196]
[1765498615128,0.002,3235.2,3235.1,34.38693499]
[1765498615337,0.002,3235.2,3235.1,29.25372999]
[1765498615936,0.002,3235.2,3235.1,18.31709799]
[1765498616137,0.002,3235.2,3235.1,13.66585137]
[1765498617133,0.002,3235.2,3235.1,14.17095137]
[1765498617534,0.002,3235.2,3235.1,13.83425137]
[1765498617728,0.002,3235.2,3235.1,14.17095137]
[1765498618953,0.002,3235.2,3235.1,30.58720037]
[1765498619949,0.002,3235.2,3235.1,39.93168237]
[1765498620158,0.002,3235.2,3235.1,36.83216237]
[1765498620647,0.002,3236.0,3235.9,6.71395867]
[1765498620847,0.002,3236.0,3235.9,11.30038489]
[1765498621034,0.002,3236.0,3235.9,11.63708489]
[1765498621234,0.002,3236.0,3235.9,11.76075256]
[1765498622018,0.002,3236.0,3235.9,39.57078356]
[1765498622351,0.002,3236.0,3235.9,38.41980356]
[1765498622718,0.002,3236.0,3235.9,27.73344556]
[1765498623155,0.002,3236.0,3235.9,32.61579556]
[1765498623520,0.002,3236.0,3235.9,30.42756756]
[1765498624045,0.002,3236.0,3235.9,11.76075256]
[1765498624251,0.002,3236.0,3235.9,32.28001956]
[1765498624632,0.002,3236.0,3235.9,18.42415756]
[1765498625137,0.002,3236.0,3235.9,25.84827956]
[1765498625541,0.002,3236.0,3235.9,23.42722256]
[1765498626119,0.002,3236.0,3235.9,11.76075256]
[1765498626324,0.002,3236.0,3235.9,23.61888956]
[1765498626532,0.002,3236.0,3235.9,15.95198956]
[1765498626825,0.002,3236.0,3235.9,15.31960356]
[1765498627258,0.002,3236.0,3235.9,9.87016718]
[1765498627557,0.9613,3236.0,3235.9,5.23570551]
[1765498627760,0.9613,3236.0,3235.9,4.83020151]
[1765498627968,0.9613,3236.0,3235.9,1.73987116]
[1765498628177,0.9613,3236.0,3235.9,3.67080564]
[1765498632939,0.9613,3236.0,3235.9,0.58047529]
[1765498633877,0.9613,3236.0,3235.9,3.67080564]
[1765498634430,0.002,3236.0,3235.9,10.40404894]
[1765498634627,0.491,3236.0,3235.9,12.43822697]
[1765498634932,0.002,3236.0,3235.9,12.77492697]
[1765498636033,0.002,3236.0,3235.9,6.56058697]
[1765498636034,0.4765,3236.0,3235.9,6.56058697]
[1765498636227,0.4765,3236.0,3235.9,4.15880564]
[1765498636950,0.002,3236.0,3235.9,4.15880564]
[1765498637268,0.002,3236.0,3235.9,4.49550564]
[1765498638037,0.4765,3236.0,3235.9,4.15880564]
[1765498638231,0.9715,3236.0,3235.9,4.15880564]
[1765498638434,0.9715,3236.0,3235.9,4.91202977]
[1765498638974,0.4765,3236.0,3235.9,4.91202977]
[1765498639272,0.002,3236.0,3235.9,5.24872977]
[1765498640262,0.002,3236.0,3235.9,4.91202977]
[1765498640437,0.4765,3236.0,3235.9,4.91202977]
[1765498640765,0.002,3236.0,3235.9,4.91202977]
[1765498641730,0.4765,3236.0,3235.9,4.91202977]
[1765498641934,0.002,3236.0,3235.9,5.24872977]
[1765498642160,0.002,3236.0,3235.9,35.39687474]
[1765498642462,0.002,3236.0,3235.9,23.3154247]
[1765498642761,0.002,3236.0,3235.9,22.3361817]
[1765498643129,0.002,3236.0,3235.9,25.0946767]
[1765498644292,0.002,3236.0,3235.9,34.2131067]
[1765498644485,0.002,3236.0,3235.9,31.5717997]
[1765498644690,0.002,3236.0,3235.9,12.5496987]
[1765498644848,0.002,3236.0,3235.9,8.5587317]
[1765498645155,0.4765,3236.0,3235.9,8.5680097]
[1765498645479,0.4765,3236.0,3235.9,8.9735137]
[1765498645678,0.002,3236.0,3235.9,8.9735137]
[1765498645880,0.002,3236.0,3235.9,9.3102137]
[1765498646264,0.002,3236.0,3235.9,20.5211037]
[1765498647255,0.002,3236.0,3235.9,20.5186877]
[1765498648188,0.002,3236.0,3235.9,6.0609007]
[1765498648369,0.002,3236.0,3235.9,20.5186877]
[1765498649185,0.002,3236.0,3235.9,6.0609007]
[1765498649392,0.002,3236.0,3235.9,21.7154107]
[1765498649693,0.002,3236.0,3235.9,22.0521107]
[1765498650020,0.002,3236.0,3235.9,21.7154107]
[1765498650374,0.002,3236.0,3235.9,22.7154107]
[1765498650682,0.002,3236.0,3235.9,28.44255529]
[1765498650882,0.002,3236.0,3235.9,28.77925529]
[1765498651292,0.002,3236.0,3235.9,28.52543229]
[1765498651669,0.002,3236.0,3235.9,28.86213229]
[1765498652074,0.002,3236.0,3235.9,28.07696429]
[1765498652280,0.002,3236.0,3235.9,29.87068729]
[1765498653280,0.002,3236.0,3235.9,11.78804529]
[1765498653479,0.002,3236.0,3235.9,28.87068729]
[1765498653997,0.002,3236.0,3235.9,23.93196429]
[1765498654196,0.4765,3236.0,3235.9,13.61734529]
[1765498654399,0.4765,3236.0,3235.9,7.8902007]
[1765498654601,0.9715,3236.0,3235.9,4.07747257]
[1765498654805,0.9715,3236.0,3235.9,4.56547257]
[1765498655174,0.4765,3236.0,3235.9,4.56547257]
[1765498656895,0.9715,3236.0,3235.9,4.56547257]
[1765498659705,0.4765,3236.0,3235.9,4.56547257]
[1765498660013,0.002,3236.0,3235.9,13.37883739]
[1765498663991,0.002,3236.0,3235.9,14.12104139]
[1765498664217,0.002,3236.0,3235.9,36.43826739]
[1765498664418,0.002,3236.0,3235.9,35.00246939]
[1765498665106,0.002,3236.0,3235.9,36.43826739]
[1765498665496,0.002,3236.0,3235.9,34.56151039]
[1765498665716,0.002,3236.0,3235.9,25.77603539]
[1765498665917,0.002,3236.0,3235.9,26.11273539]
[1765498666422,0.002,3236.0,3235.9,35.20872739]
[1765498666988,0.002,3236.0,3235.9,33.34483439]
[1765498668522,0.002,3236.0,3235.9,35.45463739]
[1765498668824,0.002,3236.0,3235.9,25.30324339]
[1765498669122,0.002,3236.0,3235.9,24.96654339]
[1765498669426,0.4842,3236.0,3235.9,5.76486739]
[1765498669609,0.4842,3236.0,3235.9,12.70070439]
[1765498669942,0.9367,3236.0,3235.9,4.58835342]
[1765498670227,0.002,3236.0,3235.9,4.80139646]
[1765498671914,0.002,3236.0,3235.9,5.20690046]
[1765498672221,0.002,3236.0,3235.9,5.57450376]
[1765498672516,0.002,3236.0,3235.9,27.10414476]
[1765498672819,0.002,3236.0,3235.9,27.07324146]
[1765498674802,0.002,3236.0,3235.9,27.19690645]
[1765498675318,0.002,3236.0,3235.9,35.66726545]
[1765498675691,0.002,3236.0,3235.9,25.85773145]
[1765498676495,0.002,3236.0,3235.9,28.79889045]
[1765498677021,0.002,3236.0,3235.9,29.13559045]
[1765498678329,0.002,3236.0,3235.9,28.58439045]
[1765498678729,0.002,3236.0,3235.9,29.14567645]
[1765498679226,0.002,3236.0,3235.9,28.80897645]
[1765498679430,0.002,3236.0,3235.9,29.14567645]
[1765498679930,0.002,3236.0,3235.9,28.59447645]
[1765498680431,0.002,3236.0,3235.9,23.27579745]
[1765498680830,0.4842,3236.0,3235.9,9.93694645]
[1765498681130,0.4842,3236.0,3235.9,7.70605445]
[1765498681340,0.9367,3236.0,3235.9,8.19405445]
[1765498681705,0.002,3236.0,3235.9,8.53075445]
[1765498682124,0.002,3236.0,3235.9,8.19405445]
[1765498683921,0.4842,3236.0,3235.9,8.19405445]
[1765498684108,0.9367,3236.0,3235.9,7.73342945]
[1765498684939,0.4842,3236.0,3235.9,7.73342945]
[1765498685929,0.002,3236.0,3235.9,8.07012945]
[1765498687148,0.002,3236.0,3235.9,35.81856545]
[1765498687329,0.002,3236.0,3235.9,28.78999945]
[1765498687510,0.002,3236.0,3235.9,25.46294545]
[1765498687839,0.002,3236.0,3235.9,23.55210145]
[1765498688053,0.002,3236.0,3235.9,26.65556645]
[1765498688947,0.002,3236.0,3235.9,6.15526545]
[1765498689150,0.002,3236.0,3235.9,42.25228636]
[1765498689451,0.002,3236.0,3235.9,41.88241004]
[1765498689756,0.002,3236.0,3235.9,29.44271345]
[1765498690054,0.002,3236.0,3235.9,22.03862645]
[1765498690366,0.002,3236.0,3235.9,21.67862645]
[1765498690750,0.002,3236.0,3235.9,18.57809145]
[1765498691047,0.002,3236.0,3235.9,24.15239945]
[1765498691414,0.002,3236.0,3235.9,22.89265845]
[1765498692127,0.002,3236.0,3235.9,29.22110145]
[1765498692333,0.002,3236.0,3235.9,29.55780145]
[1765498693113,0.002,3236.0,3235.9,41.88241004]
[1765498693534,0.002,3236.0,3235.9,36.15526545]
[1765498695125,0.002,3236.0,3235.9,6.15526545]
[1765498695336,0.002,3236.0,3235.9,36.15526545]
[1765498695746,0.4835,3236.6,3235.9,36.15526545]
[1765498695747,0.6774,3237.2,3236.7,0.405504]
[1765498696060,0.1815,3237.5,3236.8,43.91579851]
[1765498696222,0.1815,3237.5,3236.8,47.31107488]
[1765498696551,0.1815,3237.5,3236.8,47.65154952]
[1765498696853,0.6779,3237.5,3236.8,41.58227969]
[1765498697055,0.4964,3237.4,3236.8,49.73662273]
[1765498697254,0.1815,3237.5,3236.8,50.07332273]
[1765498698120,0.002,3237.7,3236.8,49.73662273]
[1765498698324,0.002,3237.7,3236.8,50.07332273]
[1765498700335,0.002,3237.7,3237.4,30.0]
[1765498700525,0.002,3237.7,3237.6,29.38771561]
[1765498700732,0.002,3237.7,3237.6,21.11210861]
[1765498701063,0.4895,3237.7,3237.6,16.24381761]
[1765498701258,0.4895,3237.7,3237.6,20.83451461]
[1765498701459,0.4895,3237.7,3237.6,21.62840543]
[1765498702167,0.4895,3237.7,3237.6,24.71711311]
[1765498702374,0.002,3237.7,3237.6,29.87637011]
[1765498703050,0.002,3237.7,3237.6,28.38069611]
[1765498703360,0.002,3237.7,3237.6,29.68854711]
[1765498703661,0.002,3237.7,3237.6,28.54354711]
[1765498703965,0.4895,3237.7,3237.6,28.54354711]
[1765498704152,0.4895,3237.7,3237.6,27.43309211]
[1765498704351,0.4895,3237.7,3237.6,28.39733611]
[1765498704553,0.002,3237.7,3237.6,28.39733611]
[1765498704742,0.002,3237.7,3237.6,28.73403611]
[1765498705345,0.002,3237.7,3237.6,31.36546911]
[1765498705731,0.002,3237.7,3237.6,30.81426911]
[1765498705931,0.002,3237.7,3237.6,28.29439811]
[1765498706463,0.002,3237.7,3237.6,30.97312611]
[1765498706759,0.002,3237.7,3237.6,29.82812611]
[1765498707464,0.002,3237.7,3237.6,11.70640711]
[1765498707666,0.002,3237.7,3237.6,31.00488311]
[1765498708169,0.002,3237.7,3237.6,29.50230211]
[1765498708565,0.002,3237.7,3237.6,29.84846411]
[1765498708944,0.002,3237.7,3237.6,35.57018346]
[1765498709150,0.002,3237.7,3237.6,30.18516411]
[1765498709560,0.002,3237.7,3237.6,42.04310711]
[1765498710637,0.002,3237.7,3237.6,42.38230549]
[1765498710854,0.4964,3238.5,3237.6,51.52943252]
[1765498711052,0.1835,3238.6,3238.5,0.405504]
[1765498711367,0.002,3238.6,3238.5,18.30212064]
[1765498711693,0.002,3238.6,3238.5,34.66456964]
[1765498712041,0.002,3238.6,3238.5,35.16096964]
[1765498712279,0.002,3238.6,3238.5,37.59359333]
[1765498712645,0.002,3238.6,3238.5,43.06526164]
[1765498713045,0.002,3238.6,3238.5,40.73095564]
[1765498713766,0.002,3238.6,3238.5,43.56007164]
[1765498715461,0.002,3238.6,3238.5,49.62929099]
[1765498715878,0.1815,3240.0,3239.8,0.58047529]
[1765498716091,0.6779,3240.0,3239.9,15.52725579]
[1765498716256,0.6779,3240.0,3239.9,1.06847529]
[1765498716454,1.1654,3240.0,3239.9,1.06847529]
[1765498716981,4.25181975,3240.0,3239.9,0.9264964]
[1765498717294,4.25181975,3240.0,3239.2,3.08708766]
[1765498717477,0.4915,3239.9,3239.3,3.08704785]
[1765498717650,0.37594198,3239.8,3239.3,3.08704785]
[1765498717973,0.4875,3239.4,3239.3,3.08704785]
[1765498718479,0.979,3239.4,3239.2,5.72171935]
[1765498718675,0.0049,3239.3,3239.2,5.72171935]
[1765498718876,0.5013,3239.3,3239.2,9.38937666]
[1765498719083,3.58838671,3239.3,3238.6,3.08766157]
[1765498719251,0.1815,3239.0,3238.7,3.08764495]
[1765498719452,0.1815,3239.0,3238.5,0.488]
[1765498719776,0.6673,3238.6,3238.5,4.1563246]
[1765498720289,1.1606,3238.6,3238.5,3.6683246]
[1765498720656,1.1606,3238.6,3238.3,4.0149268]
[1765498720972,0.4875,3238.4,3238.2,0.58047529]
[1765498721172,0.4884,3238.5,3238.2,0.58047529]
[1765498721487,0.4875,3238.3,3238.2,0.58047529]
[1765498721847,0.9808,3238.3,3238.2,3.66861067]
[1765498726867,0.9808,3238.3,3238.0,1.41498022]
[1765498727083,0.4998,3238.1,3238.0,4.15674497]
[1765498727486,0.4998,3238.1,3238.0,3.66874497]
[1765498727658,0.4998,3238.1,3237.6,0.488]
[1765498727659,0.9809,3238.1,3237.6,0.488]
[1765498727856,0.6796,3237.7,3237.6,4.15718297]
[1765498728256,1.1625,3237.7,3237.6,4.15718297]
[1765498730979,1.1625,3237.7,3237.6,1.06847529]
[1765498732188,1.1625,3237.7,3237.6,3.66918297]
[1765498733180,7.33972456,3237.7,3237.2,14.338689]
[1765498733488,0.4998,3237.3,3236.4,0.58047529]
[1765498733689,0.4998,3237.3,3236.3,3.57794839]
[1765498733690,0.0048,3237.2,3236.3,6.66789678]
[1765498733858,0.0048,3237.2,3236.4,0.58047529]
[1765498734062,0.4873,3237.1,3236.4,1.3053125]
[1765498734257,0.6767,3236.5,3236.3,0.488]
[1765498734467,0.005,3236.4,3236.3,0.488]
[1765498734660,0.4923,3236.4,3236.3,1.06847529]
[1765498734877,0.4923,3236.4,3236.3,0.488]
[1765498735481,0.4923,3236.4,3236.3,4.15842368]
[1765498736491,0.4923,3236.4,3236.3,1.06847529]
[1765498736791,0.4923,3236.4,3236.3,4.15842368]
[1765498736987,0.4923,3236.4,3236.3,1.06847529]
[1765498738092,0.4923,3236.4,3236.3,4.15842368]
[1765498740993,0.005,3236.4,3236.3,4.15842368]
[1765498741493,3.08937892,3236.9,3236.4,0.98597929]
[1765498741494,0.6681,3236.9,3236.4,0.98597929]
[1765498741707,0.73397246,3237.6,3236.6,0.58047529]
[1765498741875,0.4873,3237.6,3237.0,0.405504]
[1765498742197,0.4873,3237.6,3237.1,0.488]
[1765498743273,0.4959,3237.2,3237.1,1.06847529]
[1765498743492,0.4959,3237.2,3237.1,1.25242382]
[1765498743679,0.4959,3237.2,3237.1,4.34160858]
[1765498745675,0.4873,3237.4,3237.1,7.43079334]
[1765498746808,0.4873,3237.4,3237.1,4.34160858]
[1765498748018,0.1798,3237.7,3237.1,7.43079334]
[1765498748319,0.1808,3237.9,3237.6,0.458]
[1765498748673,0.6681,3237.9,3237.2,2.40759168]
[1765498748975,0.4873,3237.8,3237.2,2.40759168]
[1765498749182,0.4873,3237.8,3237.2,1.94379168]
[1765498749385,0.4873,3237.8,3237.4,12.81406]
[1765498749697,0.4873,3237.8,3237.5,0.58047529]
[1765498749872,0.4873,3237.8,3237.6,3.08870768]
[1765498750200,0.1808,3237.9,3237.6,6.17741536]
[1765498750401,0.1808,3237.9,3237.7,0.58047529]
[1765498750568,0.4873,3238.1,3237.8,0.67578907]
[1765498750970,0.4998,3237.9,3237.8,0.67578907]
[1765498751802,0.4998,3237.9,3237.8,3.76430596]
[1765498752390,3.08797068,3238.4,3237.8,4.22230596]
[1765498752590,0.4873,3239.3,3238.4,0.405504]
[1765498752805,0.4902,3239.2,3238.8,5.717297]
[1765498753006,0.4902,3239.7,3238.9,0.488]
[1765498753172,0.002,3239.9,3239.4,5.717297]
[1765498753500,0.002,3239.9,3239.7,5.717297]
[1765498753669,0.002,3239.9,3239.7,6.205297]
[1765498754181,0.002,3239.9,3239.8,3.08661028]
[1765498754570,0.4932,3239.9,3239.8,3.08661028]
[1765498754806,0.002,3239.9,3239.8,3.56741028]
[1765498756309,0.002,3239.9,3239.8,4.14788557]
[1765498756524,0.002,3239.9,3239.8,4.86209768]
[1765498756888,0.002,3239.9,3239.8,5.26760168]
[1765498757316,0.4891,3239.9,3239.8,4.86929768]
[1765498758602,0.002,3239.9,3239.8,5.35009768]
[1765498759337,0.002,3239.9,3239.8,5.75560168]
[1765498759633,0.002,3239.9,3239.8,32.83722368]
[1765498760493,0.002,3239.9,3239.8,36.21920168]
[1765498760924,0.002,3239.9,3239.8,24.94962768]
[1765498761502,0.002,3239.9,3239.8,36.21920168]
[1765498764045,0.002,3239.9,3239.8,36.34270402]
[1765498766554,0.002,3239.9,3239.8,6.34270402]
[1765498766752,0.002,3239.9,3239.8,36.34270402]
[1765498771849,0.002,3239.9,3239.8,36.01817002]
[1765498772766,0.002,3239.9,3239.8,36.34270402]
[1765498773265,0.002,3241.2,3239.8,36.34270402]
[1765498773266,0.002,3241.2,3241.0,0.405504]
[1765498773564,0.002,3241.2,3240.5,0.4785]
[1765498773565,0.4771,3241.2,3241.1,22.59769029]
[1765498773959,0.968,3241.2,3241.1,22.59769029]
[1765498774368,0.968,3241.2,3241.1,1.06847529]
[1765498775129,0.968,3241.2,3241.1,4.15384754]
[1765498775334,0.968,3241.2,3241.1,4.87777901]
[1765498775533,0.002,3241.2,3241.1,9.00895901]
[1765498775766,0.4929,3241.2,3241.1,9.00895901]
[1765498776265,0.002,3241.2,3241.1,36.60819298]
[1765498776468,0.1805,3242.9,3241.5,0.4785]
[1765498776680,0.4751,3242.8,3242.5,22.151242]
[1765498776835,0.4751,3242.8,3242.6,0.488]
[1765498777180,0.4751,3242.8,3242.3,0.405504]
[1765498777181,0.0192,3242.4,3242.3,22.16552362]
[1765498777335,0.0192,3242.4,3242.3,3.66470562]
[1765498777531,0.4943,3242.4,3242.3,0.58047529]
[1765498779473,0.4943,3242.4,3241.1,0.28300997]
[1765498779674,0.383,3241.4,3241.2,10.662602]
[1765498779969,0.1805,3241.4,3241.3,1.5835612]
[1765498780134,0.1805,3241.4,3241.3,1.47497929]
[1765498780336,0.6714,3241.4,3241.3,1.47497929]
[1765498780577,0.4909,3241.4,3241.3,1.47497929]
[1765498780983,0.966,3241.4,3241.2,3.08527705]
[1765498781141,0.0192,3241.3,3241.2,3.66575234]
[1765498781336,0.4943,3241.3,3241.2,3.66575234]
[1765498782463,0.4943,3241.3,3241.2,3.08527705]
[1765498782765,0.4943,3241.3,3241.2,3.66575234]
[1765498786440,0.0192,3241.3,3241.2,5.23536947]
[1765498787564,0.0192,3241.3,3241.2,3.66575234]
[1765498787863,0.0192,3241.3,3241.2,4.15475234]
[1765498787864,0.5077,3241.3,3241.2,4.15475234]
[1765498788845,0.5077,3241.3,3241.2,0.58047529]
[1765498789045,0.5077,3241.3,3241.2,3.66575234]
[1765498789988,0.0192,3241.3,3241.2,3.66575234]
[1765498791069,3.08321018,3243.4,3241.3,0.58047529]
[1765498791070,0.4885,3241.7,3241.3,0.58047529]
[1765498791264,0.1919,3241.9,3241.4,0.489]
[1765498791462,0.4885,3241.8,3241.4,0.489]
[1765498791670,0.4664,3241.5,3241.4,0.489]
[1765498791856,0.4664,3241.5,3241.4,4.15456198]
[1765498792058,0.9549,3241.5,3241.4,4.15456198]
[1765498792272,0.9549,3241.5,3241.4,3.66556198]
[1765498794357,0.4664,3241.5,3241.4,3.66556198]
[1765498795150,0.6804,3241.9,3241.5,0.58047529]
[1765498795369,0.4664,3241.6,3241.5,0.58047529]
[1765498795575,0.4664,3241.6,3241.5,1.06947529]
[1765498795883,0.9549,3241.6,3240.3,0.92614173]
[1765498796087,0.0188,3241.5,3241.2,3.08522739]
[1765498796379,0.0188,3241.5,3240.7,3.0857187]
[1765498796380,0.5073,3241.5,3240.8,0.489]
[1765498796693,0.5073,3241.5,3241.2,0.58047529]
[1765498796985,0.4885,3241.5,3241.2,3.0852728]
[1765498797155,0.4664,3241.3,3241.2,3.66574809]
[1765498797654,0.9549,3241.3,3241.2,3.66574809]
[1765498799087,0.4885,3241.6,3241.2,5.59290674]
[1765498799253,0.4885,3241.6,3241.2,7.69452514]
[1765498800163,0.4885,3241.6,3241.2,7.24002514]
[1765498800852,0.1919,3241.9,3241.2,7.70872514]
[1765498801580,0.4885,3241.8,3241.3,0.58047529]
[1765498802000,0.4664,3241.4,3241.3,0.489]
[1765498802159,0.4664,3241.4,3241.1,0.58047529]
[1765498802353,0.0188,3241.2,3241.1,0.58047529]